fUSD/lending_fUSD_20240515
["ID","MTS","AMOUNT","RATE_DAILY","PERIOD"]
[327071854,1715779836154,-500.0,0.0001178,2]
[327071855,1715779836164,-500.0,0.0001178,2]
[327071856,1715779836174,-500.0,0.0001178,2]
[327071857,1715779836186,-488.06,0.0001178,2]
[327071858,1715779836196,-500.0,0.0001178,2]
[327071859,1715779836205,-1736.84,0.0001178,2]
[327071860,1715779836214,-500.0,0.0001178,2]
[327071861,1715779836223,-500.0,0.0001178,2]
[327071862,1715779836232,-500.0,0.0001178,2]
[327071863,1715779836241,-500.0,0.0001178,2]
[327071864,1715779836251,-655.41,0.0001178,2]
[327071865,1715779836262,-500.0,0.0001178,2]
[327071866,1715779836271,-500.0,0.0001178,2]
[327071867,1715779836282,-500.0,0.0001178,2]
[327071868,1715779836291,-500.0,0.0001178,2]
[327071869,1715779836302,-500.0,0.0001178,2]
[327071870,1715779836311,-500.0,0.0001178,2]
[327071871,1715779836321,-500.0,0.0001178,2]
[327071872,1715779836331,-500.0,0.0001178,2]
[327071873,1715779836341,-500.0,0.0001178,2]
[327071874,1715779836351,-460.08,0.0001178,2]
[327071875,1715779836361,-608.27,0.0001178,2]
[327071876,1715779836370,-500.0,0.0001178,2]
[327071877,1715779836380,-500.0,0.0001178,2]
[327071878,1715779836390,-500.0,0.0001178,2]
[327071879,1715779836399,-484.39739505,0.0001178,2]
[327071880,1715779836409,-500.0,0.0001178,2]
[327071881,1715779836419,-1565.94,0.0001178,2]
[327071882,1715779836430,-500.0,0.0001178,2]
[327071883,1715779836440,-691.13,0.0001178,2]
[327071884,1715779836449,-500.0,0.0001178,2]
[327071885,1715779836459,-350.85065652,0.0001178,2]
[327071886,1715779836468,-672.8,0.0001178,2]
[327071887,1715779836478,-500.0,0.0001178,2]
[327071888,1715779836488,-500.0,0.0001178,2]
[327071889,1715779836498,-3498.72,0.0001178,2]
[327071890,1715779836508,-1363.37,0.0001178,2]
[327071891,1715779836517,-500.0,0.0001178,2]
[327071892,1715779836527,-500.0,0.0001178,2]
[327071893,1715779836536,-500.0,0.0001178,2]
[327071894,1715779836546,-500.0,0.0001178,2]
[327071895,1715779836555,-500.0,0.0001178,2]
[327071896,1715779836565,-500.0,0.0001178,2]
[327071897,1715779836575,-500.0,0.0001178,2]
[327071898,1715779836584,-500.0,0.0001178,2]
[327071899,1715779836594,-500.0,0.0001178,2]
[327071900,1715779836603,-500.0,0.0001178,2]
[327071901,1715779836613,-876.73,0.0001178,2]
[327071902,1715779836623,-500.0,0.0001178,2]
[327071903,1715779836633,-500.0,0.0001178,2]
[327071904,1715779836642,-504.76,0.0001178,2]
[327071905,1715779836652,-500.0,0.0001178,2]
[327071906,1715779836661,-500.0,0.0001178,2]
[327071907,1715779836671,-1097.5,0.0001178,2]
[327071908,1715779836682,-784.69,0.0001178,2]
[327071909,1715779836692,-500.0,0.00011784,2]
[327071910,1715779836701,-300.0,0.00011797,2]
[327071911,1715779836711,-616.92825218,0.00011798,2]
[327071912,1715779836721,-342.56709147,0.00011798,2]
[327071913,1715779836730,-6777.26120682,0.00011798,2]
[327071914,1715779836740,-1464.0,0.000118,2]
[327071915,1715779836749,-32111.48295452,0.000118,2]
[327071916,1715779836759,-300.0,0.00011802,2]
[327071917,1715779836769,-1597.57932068,0.00011836,2]
[327071918,1715779836779,-300.0,0.0001184,2]
[327071919,1715779836789,-342.56709146,0.00011849,2]
[327071920,1715779836799,-6777.26120681,0.00011849,2]
[327071921,1715779836812,-300.0,0.00011868,2]
[327071922,1715779836823,-156.95,0.00011868,2]
[327071923,1715779836832,-489.54298967,0.00011869,2]
[327071924,1715779836843,-156.95,0.0001187,2]
[327071925,1715779836853,-156.95,0.0001187,2]
[327071926,1715779836862,-156.95,0.0001187,2]
[327071927,1715779836873,-526.99,0.00011871,2]
[327071928,1715779836884,-500.0,0.00011871,2]
[327071929,1715779836894,-500.0,0.00011871,2]
[327071930,1715779836904,-500.0,0.00011871,2]
[327071931,1715779836913,-655.41,0.00011871,2]
[327071932,1715779836923,-500.0,0.00011871,2]
[327071933,1715779836936,-500.0,0.00011871,2]
[327071934,1715779836947,-500.0,0.00011871,2]
[327071935,1715779836957,-500.0,0.00011871,2]
[327071936,1715779836967,-500.0,0.00011871,2]
[327071937,1715779836977,-500.0,0.00011871,2]
[327071938,1715779836987,-343.71,0.00011871,2]
[327071939,1715779836997,-500.0,0.00011871,2]
[327071940,1715779837007,-500.0,0.00011871,2]
[327071941,1715779837016,-174.82,0.00011871,2]
[327071942,1715779837027,-784.69,0.00011871,2]
[327071943,1715779837036,-236.1260419,0.00011872,2]
[327071944,1715779837046,-15274.0659721,0.00011872,2]
[327071945,1715779837056,-4742.4552858,0.00011872,2]
[327071946,1715779837066,-25878.3137433,0.00011872,2]
[327071947,1715779837076,-1655.7338885,0.00011872,2]
[327071948,1715779837086,-2156.8376469,0.00011872,2]
[327071949,1715779837096,-411.8391893,0.00011872,2]
[327071950,1715779837106,-500.0,0.00011877,2]
[327071951,1715779837115,-526.99,0.00011877,2]
[327071952,1715779837125,-500.0,0.00011877,2]
[327071953,1715779837134,-500.0,0.00011877,2]
[327071954,1715779837144,-500.0,0.00011877,2]
[327071955,1715779837153,-500.0,0.00011877,2]
[327071956,1715779837163,-500.0,0.00011877,2]
[327071957,1715779837172,-608.27,0.00011877,2]
[327071958,1715779837184,-500.0,0.00011877,2]
[327071959,1715779837194,-500.0,0.00011877,2]
[327071960,1715779837204,-1565.94,0.00011877,2]
[327071961,1715779837214,-691.13,0.00011877,2]
[327071962,1715779837224,-672.8,0.00011877,2]
[327071963,1715779837234,-500.0,0.00011877,2]
[327071964,1715779837244,-1363.37,0.00011877,2]
[327071965,1715779837254,-500.0,0.00011877,2]
[327071966,1715779837264,-500.0,0.00011877,2]
[327071967,1715779837273,-500.0,0.00011877,2]
[327071968,1715779837283,-500.0,0.00011877,2]
[327071969,1715779837293,-500.0,0.00011877,2]
[327071970,1715779837302,-500.0,0.00011877,2]
[327071971,1715779837312,-876.73,0.00011877,2]
[327071972,1715779837321,-500.0,0.00011877,2]
[327071973,1715779837331,-500.0,0.00011877,2]
[327071974,1715779837340,-500.0,0.00011877,2]
[327071975,1715779837350,-1097.5,0.00011877,2]
[327071976,1715779837359,-207.92488696,0.00011878,2]
[327071977,1715779837369,-155.5211706,0.00011878,2]
[327071978,1715779837378,-339.57491762,0.00011878,2]
[327071979,1715779837388,-488.3397664,0.00011878,2]
[327071980,1715779837397,-5865.7372962,0.00011878,2]
[327071981,1715779837407,-685.23241035,0.00011878,2]
[327071982,1715779837417,-207.18111686,0.00011878,2]
[327071983,1715779837426,-155.0,0.00011878,2]
[327071984,1715779837440,-305.95729831,0.00011878,2]
[327071985,1715779837449,-206.54279872,0.00011878,2]
[327071986,1715779837459,-155.50097248,0.00011878,2]
[327071987,1715779837468,-409.03689151,0.00011878,2]
[327071988,1715779837478,-301.44745142,0.00011878,2]
[327071989,1715779837487,-155.0,0.00011878,2]
[327071990,1715779837496,-535.13320909,0.00011878,2]
[327071991,1715779837506,-405.519977,0.00011878,2]
[327071992,1715779837516,-1270.95302467,0.00011878,2]
[327071993,1715779837525,-500.0,0.00011878,2]
[327071994,1715779837535,-492.14409897,0.00011878,2]
[327071995,1715779837544,-391.10109807,0.00011878,2]
[327071996,1715779837553,-155.0,0.00011878,2]
[327071997,1715779837563,-327.17356754,0.00011878,2]
[327071998,1715779837572,-265.46357852,0.00011878,2]
[327071999,1715779837582,-449.49960028,0.00011878,2]
[327072000,1715779837591,-204.99574021,0.00011878,2]
[327072001,1715779837601,-158.77584422,0.00011878,2]
[327072002,1715779837610,-304.15399791,0.00011878,2]
[327072003,1715779837620,-155.0,0.00011878,2]
[327072004,1715779837628,-1213.08546547,0.00011878,2]
[327072005,1715779837638,-159.62507899,0.00011878,2]
[327072006,1715779837647,-155.0,0.00011878,2]
[327072007,1715779837656,-155.39243904,0.00011878,2]
[327072008,1715779837666,-155.25674088,0.00011878,2]
[327072009,1715779837675,-2576.83533335,0.00011878,2]
[327072010,1715779837688,-5557.31186524,0.00011878,2]
[327072011,1715779837698,-3488.62355985,0.00011878,2]
[327072012,1715779837707,-155.0,0.00011878,2]
[327072013,1715779837717,-155.0,0.00011878,2]
[327072014,1715779837726,-344.0450991,0.00011878,2]
[327072015,1715779837735,-3057.79124914,0.00011878,2]
[327072016,1715779837744,-155.23277733,0.00011878,2]
[327072017,1715779837755,-500.0,0.00011878,2]
[327072018,1715779837764,-583.88,0.00011878,2]
[327072019,1715779837773,-500.0,0.00011878,2]
[327072020,1715779837784,-931.99,0.00011878,2]
[327072021,1715779837797,-605.79656963,0.00011878,2]
[327072022,1715779837806,-237.26391854,0.00011878,2]
[327072023,1715779837816,-707.84680816,0.00011878,2]
[327072024,1715779837826,-782.7917937,0.00011878,2]
[327072025,1715779837836,-1043.83,0.00011878,2]
[327072026,1715779837847,-155.35229815,0.00011878,2]
[327072027,1715779837857,-1378.02858088,0.00011878,2]
[327072028,1715779837868,-516.27787223,0.00011878,2]
[327072029,1715779837878,-193.76256617,0.00011878,2]
[327072030,1715779837887,-223.2617011,0.00011878,2]
[327072031,1715779837898,-155.45188947,0.00011878,2]
[327072032,1715779837908,-374.270463,0.00011878,2]
[327072033,1715779837918,-362.64920396,0.00011878,2]
[327072034,1715779837928,-605.88512833,0.00011878,2]
[327072035,1715779837942,-715.48,0.00011878,2]
[327072036,1715779837951,-500.0,0.00011878,2]
[327072037,1715779837961,-500.0,0.00011878,2]
[327072038,1715779837970,-500.0,0.00011878,2]
[327072039,1715779837979,-500.0,0.00011878,2]
[327072040,1715779837988,-1736.84,0.00011878,2]
[327072041,1715779837997,-500.0,0.00011878,2]
[327072042,1715779838007,-500.0,0.00011878,2]
[327072043,1715779838017,-500.0,0.00011878,2]
[327072044,1715779838026,-271.06,0.00011878,2]
[327072045,1715779838036,-500.0,0.00011878,2]
[327072046,1715779838046,-500.0,0.00011878,2]
[327072047,1715779838056,-3498.72,0.00011878,2]
[327072048,1715779838066,-500.0,0.00011878,2]
[327072049,1715779838075,-500.0,0.00011878,2]
[327072050,1715779838086,-504.76,0.00011878,2]
[327072051,1715779838096,-500.0,0.00011879,2]
[327072052,1715779838105,-500.0,0.00011879,2]
[327072053,1715779838115,-500.0,0.00011879,2]
[327072054,1715779838125,-583.88,0.00011879,2]
[327072055,1715779838135,-583.88,0.00011879,2]
[327072056,1715779838145,-583.88,0.00011879,2]
[327072057,1715779838154,-500.0,0.00011879,2]
[327072058,1715779838165,-500.0,0.00011879,2]
[327072059,1715779838175,-500.0,0.00011879,2]
[327072060,1715779838189,-931.99,0.00011879,2]
[327072061,1715779838199,-931.99,0.00011879,2]
[327072062,1715779838208,-931.99,0.00011879,2]
[327072063,1715779838218,-500.0,0.00011879,2]
[327072064,1715779838227,-500.0,0.00011879,2]
[327072065,1715779838237,-500.0,0.00011879,2]
[327072066,1715779838247,-1043.83,0.00011879,2]
[327072067,1715779838256,-1043.83,0.00011879,2]
[327072068,1715779838266,-1043.83,0.00011879,2]
[327072069,1715779838276,-526.99,0.00011879,2]
[327072070,1715779838286,-526.99,0.00011879,2]
[327072071,1715779838296,-526.99,0.00011879,2]
[327072073,1715779838306,-500.0,0.00011879,2]
[327072075,1715779838316,-593.86762192,0.00011879,2]
[327072077,1715779838326,-500.0,0.00011879,2]
[327072079,1715779838335,-500.0,0.00011879,2]
[327072081,1715779838346,-490.97799999,0.00011879,2]
[327072082,1715779838356,-715.48,0.00011879,2]
[327072083,1715779838366,-715.48,0.00011879,2]
[327072084,1715779838375,-715.48,0.00011879,2]
[327072085,1715779838385,-500.0,0.00011879,2]
[327072086,1715779838394,-500.0,0.00011879,2]
[327072087,1715779838404,-320.03847237,0.00011879,2]
[327072089,1715779838414,-500.0,0.00011879,2]
[327072091,1715779838423,-500.0,0.00011879,2]
[327072093,1715779838437,-500.0,0.00011879,2]
[327072095,1715779838447,-500.0,0.00011879,2]
[327072097,1715779838456,-500.0,0.00011879,2]
[327072099,1715779838465,-500.0,0.00011879,2]
[327072101,1715779838475,-318.22163665,0.00011879,2]
[327072103,1715779838484,-1736.84,0.00011879,2]
[327072105,1715779838493,-1736.84,0.00011879,2]
[327072107,1715779838502,-1736.84,0.00011879,2]
[327072109,1715779838511,-500.0,0.00011879,2]
[327072111,1715779838521,-500.0,0.00011879,2]
[327072113,1715779838530,-601.05,0.00011879,2]
[327072115,1715779838539,-508.86130811,0.00011879,2]
[327072117,1715779838550,-500.0,0.00011879,2]
[327072119,1715779838560,-170.53009189,0.00011879,2]
[327072121,1715779838570,-500.0,0.00011879,2]
[327072123,1715779838580,-500.0,0.00011879,2]
[327072125,1715779838590,-500.0,0.00011879,2]
[327072126,1715779838600,-655.41,0.00011879,2]
[327072127,1715779838609,-655.41,0.00011879,2]
[327072132,1715779838619,-655.41,0.00011879,2]
[327072136,1715779838628,-500.0,0.00011879,2]
[327072139,1715779838638,-500.0,0.00011879,2]
[327072140,1715779838647,-500.0,0.00011879,2]
[327072141,1715779838657,-500.0,0.00011879,2]
[327072142,1715779838667,-616.67,0.00011879,2]
[327072143,1715779838676,-500.0,0.00011879,2]
[327072144,1715779838690,-420.22,0.00011879,2]
[327072145,1715779838700,-500.0,0.00011879,2]
[327072146,1715779838709,-500.0,0.00011879,2]
[327072147,1715779838718,-500.0,0.00011879,2]
[327072148,1715779838728,-500.0,0.00011879,2]
[327072149,1715779838737,-500.0,0.00011879,2]
[327072150,1715779838746,-500.0,0.00011879,2]
[327072151,1715779838756,-500.0,0.00011879,2]
[327072152,1715779838765,-500.0,0.00011879,2]
[327072153,1715779838775,-500.0,0.00011879,2]
[327072154,1715779838785,-284.14,0.00011879,2]
[327072155,1715779838796,-500.0,0.00011879,2]
[327072156,1715779838807,-500.0,0.00011879,2]
[327072157,1715779838818,-500.0,0.00011879,2]
[327072158,1715779838829,-3000.0,0.00011879,2]
[327072159,1715779838839,-608.27,0.00011879,2]
[327072160,1715779838848,-608.27,0.00011879,2]
[327072161,1715779838859,-608.27,0.00011879,2]
[327072162,1715779838869,-500.0,0.00011879,2]
[327072163,1715779838881,-500.0,0.00011879,2]
[327072164,1715779838892,-500.0,0.00011879,2]
[327072165,1715779838903,-500.0,0.00011879,2]
[327072166,1715779838912,-500.0,0.00011879,2]
[327072167,1715779838922,-500.0,0.00011879,2]
[327072168,1715779838934,-500.0,0.00011879,2]
[327072169,1715779838944,-500.0,0.00011879,2]
[327072170,1715779838953,-500.0,0.00011879,2]
[327072171,1715779838963,-1565.94,0.00011879,2]
[327072172,1715779838973,-500.0,0.00011879,2]
[327072173,1715779838984,-1565.94,0.00011879,2]
[327072174,1715779838994,-1565.94,0.00011879,2]
[327072175,1715779839003,-572.16,0.00011879,2]
[327072176,1715779839013,-691.13,0.00011879,2]
[327072177,1715779839023,-691.13,0.00011879,2]
[327072178,1715779839032,-691.13,0.00011879,2]
[327072179,1715779839043,-500.0,0.00011879,2]
[327072180,1715779839054,-500.0,0.00011879,2]
[327072183,1715779839248,-672.8,0.00011879,2]
[327072184,1715779839262,-500.0,0.00011879,2]
[327072185,1715779839274,-672.8,0.00011879,2]
[327072186,1715779839285,-672.8,0.00011879,2]
[327072187,1715779839297,-500.0,0.00011879,2]
[327072188,1715779839309,-500.0,0.00011879,2]
[327072189,1715779839321,-500.0,0.00011879,2]
[327072190,1715779839334,-1363.37,0.00011879,2]
[327072191,1715779839346,-1363.37,0.00011879,2]
[327072192,1715779839358,-1363.37,0.00011879,2]
[327072193,1715779839370,-3498.72,0.00011879,2]
[327072194,1715779839382,-3498.72,0.00011879,2]
[327072195,1715779839394,-3498.72,0.00011879,2]
[327072196,1715779839405,-500.0,0.00011879,2]
[327072197,1715779839417,-500.0,0.00011879,2]
[327072198,1715779839428,-500.0,0.00011879,2]
[327072199,1715779839444,-500.0,0.00011879,2]
[327072200,1715779839455,-500.0,0.00011879,2]
[327072201,1715779839467,-500.0,0.00011879,2]
[327072202,1715779839479,-500.0,0.00011879,2]
[327072203,1715779839490,-500.0,0.00011879,2]
[327072204,1715779839502,-500.0,0.00011879,2]
[327072205,1715779839514,-500.0,0.00011879,2]
[327072206,1715779839526,-500.0,0.00011879,2]
[327072207,1715779839538,-500.0,0.00011879,2]
[327072208,1715779839549,-500.0,0.00011879,2]
[327072209,1715779839561,-500.0,0.00011879,2]
[327072210,1715779839572,-500.0,0.00011879,2]
[327072211,1715779839583,-483.93,0.00011879,2]
[327072212,1715779839594,-500.0,0.00011879,2]
[327072213,1715779839605,-500.0,0.00011879,2]
[327072214,1715779839617,-500.0,0.00011879,2]
[327072215,1715779839628,-500.0,0.00011879,2]
[327072216,1715779839639,-500.0,0.00011879,2]
[327072217,1715779839650,-500.0,0.00011879,2]
[327072218,1715779839661,-500.0,0.00011879,2]
[327072219,1715779839672,-500.0,0.00011879,2]
[327072220,1715779839687,-500.0,0.00011879,2]
[327072221,1715779839697,-500.0,0.00011879,2]
[327072222,1715779839708,-500.0,0.00011879,2]
[327072223,1715779839720,-500.0,0.00011879,2]
[327072224,1715779839731,-876.73,0.00011879,2]
[327072225,1715779839743,-876.73,0.00011879,2]
[327072226,1715779839754,-876.73,0.00011879,2]
[327072227,1715779839765,-432.04,0.00011879,2]
[327072228,1715779839776,-500.0,0.00011879,2]
[327072229,1715779839791,-413.2,0.00011879,2]
[327072230,1715779839802,-504.76,0.00011879,2]
[327072231,1715779839813,-504.76,0.00011879,2]
[327072232,1715779839825,-504.76,0.00011879,2]
[327072233,1715779839837,-500.0,0.00011879,2]
[327072234,1715779839849,-602.22,0.00011879,2]
[327072235,1715779839860,-1097.5,0.00011879,2]
[327072236,1715779839870,-1097.5,0.00011879,2]
[327072237,1715779839881,-1097.5,0.00011879,2]
[327072238,1715779839892,-784.69,0.00011879,2]
[327072239,1715779839903,-784.69,0.00011879,2]
[327072240,1715779839913,-784.69,0.00011879,2]
[327072241,1715779839924,-670206.37061156,0.0001188,2]
[327072242,1715779839936,-60614.95021819,0.0001188,2]
[327072243,1715779839947,-151.0,0.0001188,2]
[327072244,1715779839958,-151.0,0.0001188,2]
[327072245,1715779839968,-151.0,0.0001188,2]
[327072246,1715779839978,-151.0,0.0001188,2]
[327072247,1715779839989,-151.0,0.0001188,2]
[327072248,1715779839999,-151.0,0.0001188,2]
[327072249,1715779840012,-156.759496,0.0001188,2]
[327072250,1715779840024,-151.0,0.0001188,2]
[327072251,1715779840035,-151.0,0.0001188,2]
[327072252,1715779840046,-301.095198,0.0001188,2]
[327072253,1715779840057,-609.260093,0.0001188,2]
[327072254,1715779840067,-609.260093,0.0001188,2]
[327072255,1715779840078,-151.0,0.0001188,2]
[327072256,1715779840088,-200.547578,0.0001188,2]
[327072257,1715779840099,-200.547578,0.0001188,2]
[327072258,1715779840108,-151.0,0.0001188,2]
[327072259,1715779840119,-151.0,0.0001188,2]
[327072260,1715779840129,-151.0,0.0001188,2]
[327072261,1715779840139,-151.0,0.0001188,2]
[327072262,1715779840149,-380.809324,0.0001188,2]
[327072263,1715779840158,-151.0,0.0001188,2]
[327072264,1715779840168,-380.809324,0.0001188,2]
[327072265,1715779840178,-151.0,0.0001188,2]
[327072266,1715779840191,-151.0,0.0001188,2]
[327072267,1715779840200,-151.0,0.0001188,2]
[327072268,1715779840210,-151.0,0.0001188,2]
[327072269,1715779840220,-151.0,0.0001188,2]
[327072270,1715779840230,-300.0,0.00011881,2]
[327072271,1715779840240,-150.0,0.00011885,2]
[327072272,1715779840250,-156.95,0.00011885,2]
[327072273,1715779840260,-489.54298967,0.00011888,2]
[327072274,1715779840270,-526.99,0.00011888,2]
[327072275,1715779840280,-1597.57932068,0.00011893,2]
[327072276,1715779840290,-655.41,0.00011895,2]
[327072277,1715779840304,-500.0,0.00011895,2]
[327072278,1715779840315,-500.0,0.00011895,2]
[327072279,1715779840325,-500.0,0.00011895,2]
[327072280,1715779840336,-784.69,0.00011895,2]
[327072281,1715779840346,-500.0,0.00011896,2]
[327072282,1715779840356,-583.88,0.00011896,2]
[327072283,1715779840367,-500.0,0.00011896,2]
[327072284,1715779840378,-500.0,0.00011896,2]
[327072285,1715779840389,-931.99,0.00011896,2]
[327072286,1715779840399,-500.0,0.00011896,2]
[327072287,1715779840410,-579.29536458,0.00011896,2]
[327072288,1715779840419,-1043.83,0.00011896,2]
[327072289,1715779840430,-526.99,0.00011896,2]
[327072290,1715779840442,-526.99,0.00011896,2]
[327072291,1715779840453,-715.48,0.00011896,2]
[327072292,1715779840463,-500.0,0.00011896,2]
[327072293,1715779840473,-500.0,0.00011896,2]
[327072294,1715779840482,-1736.84,0.00011896,2]
[327072295,1715779840493,-1736.84,0.00011896,2]
[327072296,1715779840503,-500.0,0.00011896,2]
[327072297,1715779840514,-500.0,0.00011896,2]
[327072298,1715779840525,-500.0,0.00011896,2]
[327072299,1715779840536,-500.0,0.00011896,2]
[327072300,1715779840547,-500.0,0.00011896,2]
[327072301,1715779840557,-500.0,0.00011896,2]
[327072303,1715779840567,-500.0,0.00011896,2]
[327072305,1715779840577,-500.0,0.00011896,2]
[327072307,1715779840587,-500.0,0.00011896,2]
[327072309,1715779840597,-500.0,0.00011896,2]
[327072312,1715779840607,-500.0,0.00011896,2]
[327072314,1715779840618,-500.0,0.00011896,2]
[327072316,1715779840629,-608.27,0.00011896,2]
[327072318,1715779840639,-608.27,0.00011896,2]
[327072320,1715779840649,-500.0,0.00011896,2]
[327072322,1715779840660,-500.0,0.00011896,2]
[327072324,1715779840670,-500.0,0.00011896,2]
[327072326,1715779840680,-500.0,0.00011896,2]
[327072329,1715779840695,-1565.94,0.00011896,2]
[327072331,1715779840706,-1565.94,0.00011896,2]
[327072333,1715779840717,-691.13,0.00011896,2]
[327072335,1715779840728,-691.13,0.00011896,2]
[327072337,1715779840738,-672.8,0.00011896,2]
[327072339,1715779840749,-672.8,0.00011896,2]
[327072341,1715779840759,-500.0,0.00011896,2]
[327072343,1715779840770,-500.0,0.00011896,2]
[327072345,1715779840780,-1363.37,0.00011896,2]
[327072347,1715779840796,-1363.37,0.00011896,2]
[327072349,1715779840807,-3498.72,0.00011896,2]
[327072351,1715779840817,-3498.72,0.00011896,2]
[327072353,1715779840827,-500.0,0.00011896,2]
[327072354,1715779840837,-500.0,0.00011896,2]
[327072356,1715779840847,-500.0,0.00011896,2]
[327072358,1715779840857,-500.0,0.00011896,2]
[327072360,1715779840867,-500.0,0.00011896,2]
[327072362,1715779840878,-634.82520177,0.00011896,2]
[327072364,1715779840890,-500.0,0.00011896,2]
[327072367,1715779840900,-500.0,0.00011896,2]
[327072369,1715779840911,-500.0,0.00011896,2]
[327072371,1715779840921,-500.0,0.00011896,2]
[327072373,1715779840936,-217.77,0.00011896,2]
[327072375,1715779840946,-876.73,0.00011896,2]
[327072377,1715779840957,-876.73,0.00011896,2]
[327072379,1715779840967,-504.76,0.00011896,2]
[327072381,1715779840977,-504.76,0.00011896,2]
[327072383,1715779840989,-1097.5,0.00011896,2]
[327072385,1715779841000,-1097.5,0.00011896,2]
[327072387,1715779841010,-1021.6383433,0.00011897,3]
[327072389,1715779841020,-1070.27520064,0.00011897,3]
[327072391,1715779841031,-1070.27520064,0.00011897,3]
[327072393,1715779841042,-500.0,0.00011897,2]
[327072395,1715779841051,-500.0,0.00011897,2]
[327072397,1715779841061,-319.31237603,0.00011897,2]
[327072399,1715779841071,-583.88,0.00011897,2]
[327072401,1715779841080,-583.88,0.00011897,2]
[327072403,1715779841090,-583.88,0.00011897,2]
[327072405,1715779841100,-583.88,0.00011897,2]
[327072407,1715779841110,-583.88,0.00011897,2]
[327072409,1715779841120,-583.88,0.00011897,2]
[327072411,1715779841131,-583.88,0.00011897,2]
[327072413,1715779841141,-583.88,0.00011897,2]
[327072415,1715779841150,-583.88,0.00011897,2]
[327072417,1715779841160,-583.88,0.00011897,2]
[327072419,1715779841171,-583.88,0.00011897,2]
[327072420,1715779841180,-583.88,0.00011897,2]
[327072421,1715779841193,-583.88,0.00011897,2]
[327072422,1715779841202,-151.0,0.00011897,2]
[327072423,1715779841213,-151.0,0.00011897,2]
[327072424,1715779841222,-151.0,0.00011897,2]
[327072425,1715779841232,-151.0,0.00011897,2]
[327072426,1715779841242,-151.0,0.00011897,2]
[327072427,1715779841251,-195.394902,0.00011897,2]
[327072428,1715779841261,-393.3972977,0.00011897,2]
[327072429,1715779841271,-151.0,0.00011897,2]
[327072430,1715779841280,-151.0,0.00011897,2]
[327072431,1715779841290,-151.0,0.00011897,2]
[327072432,1715779841299,-151.0,0.00011897,2]
[327072433,1715779841308,-931.99,0.00011897,2]
[327072434,1715779841318,-931.99,0.00011897,2]
[327072435,1715779841327,-931.99,0.00011897,2]
[327072436,1715779841336,-931.99,0.00011897,2]
[327072437,1715779841345,-931.99,0.00011897,2]
[327072439,1715779841355,-931.99,0.00011897,2]
[327072440,1715779841364,-931.99,0.00011897,2]
[327072442,1715779841374,-931.99,0.00011897,2]
[327072443,1715779841383,-931.99,0.00011897,2]
[327072446,1715779841394,-931.99,0.00011897,2]
[327072449,1715779841404,-931.99,0.00011897,2]
[327072452,1715779841413,-931.99,0.00011897,2]
[327072455,1715779841423,-931.99,0.00011897,2]
[327072457,1715779841435,-151.0,0.00011897,2]
[327072459,1715779841445,-151.0,0.00011897,2]
[327072461,1715779841454,-151.0,0.00011897,2]